fUST/lending_fUST_20250718
["ID","MTS","AMOUNT","RATE_DAILY","PERIOD"]
[372822990,1752773452151,-151.0,0.00017224,2]
[372822992,1752773452162,-1332.47,0.00017224,2]
[372822994,1752773452176,-460.0,0.00017224,2]
[372822996,1752773452186,-460.0,0.00017224,2]
[372822998,1752773452197,-460.0,0.00017224,2]
[372823001,1752773452207,-333.31433477,0.00017224,2]
[372823003,1752773452219,-460.0,0.00017224,2]
[372823005,1752773452229,-460.0,0.00017224,2]
[372823007,1752773452239,-460.0,0.00017224,2]
[372823009,1752773452250,-460.0,0.00017224,2]
[372823011,1752773452261,-466.61575344,0.00017224,2]
[372823013,1752773452271,-460.0,0.00017224,2]
[372823015,1752773452281,-460.0,0.00017224,2]
[372823017,1752773452291,-822.83,0.00017224,2]
[372823020,1752773452302,-460.0,0.00017224,2]
[372823022,1752773452312,-460.0,0.00017224,2]
[372823024,1752773452322,-460.0,0.00017224,2]
[372823026,1752773452332,-460.0,0.00017224,2]
[372823028,1752773452342,-463.32917827,0.00017224,2]
[372823030,1752773452352,-2833.79,0.00017224,2]
[372823032,1752773452363,-460.0,0.00017224,2]
[372823034,1752773452373,-151.0,0.00017224,2]
[372823036,1752773452385,-460.0,0.00017224,2]
[372823038,1752773452395,-460.0,0.00017224,2]
[372823040,1752773452406,-460.0,0.00017224,2]
[372823042,1752773452416,-460.0,0.00017224,2]
[372823044,1752773452425,-460.0,0.00017224,2]
[372823046,1752773452436,-460.0,0.00017224,2]
[372823048,1752773452446,-1025.85,0.00017224,2]
[372823050,1752773452456,-460.0,0.00017224,2]
[372823052,1752773452465,-460.0,0.00017224,2]
[372823054,1752773452476,-462.20652156,0.00017224,2]
[372823057,1752773452486,-460.0,0.00017225,2]
[372823059,1752773452495,-460.0,0.00017225,2]
[372823061,1752773452505,-468.53859941,0.00017225,2]
[372823063,1752773452516,-334.526732,0.00017225,2]
[372823065,1752773452526,-586.31704142,0.00017225,2]
[372823067,1752773452539,-334.526732,0.00017225,2]
[372823069,1752773452549,-460.0,0.00017225,2]
[372823071,1752773452559,-462.28272938,0.00017225,2]
[372823073,1752773452570,-460.0,0.00017225,2]
[372823075,1752773452580,-460.0,0.00017225,2]
[372823077,1752773452592,-460.0,0.00017225,2]
[372823079,1752773452603,-460.0,0.00017225,2]
[372823082,1752773452614,-422.73694315,0.00017225,2]
[372823084,1752773452624,-334.063091,0.00017225,2]
[372823086,1752773452636,-334.063091,0.00017225,2]
[372823088,1752773452648,-460.0,0.00017225,2]
[372823090,1752773452658,-460.0,0.00017225,2]
[372823092,1752773452668,-460.0,0.00017225,2]
[372823094,1752773452680,-462.07965524,0.00017225,2]
[372823096,1752773452691,-543.11976027,0.00017225,2]
[372823098,1752773452703,-460.0,0.00017225,2]
[372823100,1752773452715,-170.645196,0.00017225,2]
[372823117,1752773452727,-463.45976509,0.00017225,2]
[372823119,1752773452876,-170.645196,0.00017225,2]
[372823121,1752773452886,-465.97814839,0.00017225,2]
[372823123,1752773452895,-460.0,0.00017225,2]
[372823125,1752773452904,-460.0,0.00017225,2]
[372823127,1752773452913,-460.0,0.00017225,2]
[372823129,1752773452922,-460.0,0.00017225,2]
[372823131,1752773452931,-460.0,0.00017225,2]
[372823133,1752773452940,-464.6107008,0.00017225,2]
[372823135,1752773452950,-151.0,0.00017225,2]
[372823137,1752773452958,-460.0,0.00017225,2]
[372823139,1752773452968,-151.0,0.00017225,2]
[372823141,1752773452977,-271.476002,0.00017225,2]
[372823143,1752773452986,-461.89811756,0.00017225,2]
[372823145,1752773452995,-460.0,0.00017225,2]
[372823147,1752773453004,-460.0,0.00017225,2]
[372823149,1752773453014,-460.0,0.00017225,2]
[372823151,1752773453023,-460.0,0.00017225,2]
[372823153,1752773453033,-460.0,0.00017225,2]
[372823155,1752773453045,-460.0,0.00017225,2]
[372823157,1752773453055,-460.0,0.00017225,2]
[372823159,1752773453064,-151.0,0.00017225,2]
[372823161,1752773453074,-460.0,0.00017225,2]
[372823163,1752773453084,-460.0,0.00017225,2]
[372823165,1752773453094,-460.0,0.00017225,2]
[372823167,1752773453103,-432.72863012,0.00017225,2]
[372823169,1752773453112,-460.0,0.00017225,2]
[372823171,1752773453121,-460.0,0.00017225,2]
[372823173,1752773453133,-460.0,0.00017225,2]
[372823175,1752773453142,-151.0,0.00017225,2]
[372823177,1752773453152,-460.0,0.00017225,2]
[372823179,1752773453162,-460.0,0.00017225,2]
[372823181,1752773453175,-152.4612,0.00017225,2]
[372823183,1752773453185,-465.23007305,0.00017225,2]
[372823185,1752773453194,-2680.42124,0.00017225,2]
[372823187,1752773453203,-2680.42124,0.00017225,2]
[372823189,1752773453213,-507.68750009,0.00017225,2]
[372823191,1752773453223,-462.77736782,0.00017225,2]
[372823193,1752773453232,-151.0,0.00017225,2]
[372823195,1752773453242,-460.0,0.00017225,2]
[372823197,1752773453253,-462.58138973,0.00017225,2]
[372823199,1752773453262,-1164.105186,0.00017225,2]
[372823201,1752773453271,-1164.105186,0.00017225,2]
[372823203,1752773453281,-460.0,0.00017225,2]
[372823205,1752773453290,-720.612448,0.00017225,2]
[372823207,1752773453299,-720.612448,0.00017225,2]
[372823209,1752773453309,-408.630794,0.00017225,2]
[372823211,1752773453318,-408.630794,0.00017225,2]
[372823213,1752773453328,-304.05501929,0.00017225,2]
[372823215,1752773453339,-463.18048663,0.00017225,2]
[372823216,1752773453349,-460.0,0.00017225,2]
[372823218,1752773453359,-460.0,0.00017225,2]
[372823221,1752773453370,-500.0,0.00017225,2]
[372823223,1752773453389,-163.772039,0.00017225,2]
[372823226,1752773453400,-163.772039,0.00017225,2]
[372823228,1752773453409,-460.0,0.00017225,2]
[372823230,1752773453420,-460.0,0.00017225,2]
[372823232,1752773453430,-460.0,0.00017225,2]
[372823234,1752773453440,-460.0,0.00017225,2]
[372823236,1752773453450,-460.0,0.00017225,2]
[372823238,1752773453459,-151.0,0.00017225,2]
[372823240,1752773453470,-268.424204,0.00017225,2]
[372823242,1752773453480,-268.424204,0.00017225,2]
[372823244,1752773453490,-460.0,0.00017225,2]
[372823246,1752773453500,-223.287329,0.00017225,2]
[372823248,1752773453509,-223.287329,0.00017225,2]
[372823250,1752773453520,-286.975917,0.00017225,2]
[372823252,1752773453530,-286.975917,0.00017225,2]
[372823254,1752773453540,-460.0,0.00017225,2]
[372823256,1752773453549,-377.159111,0.00017225,2]
[372823258,1752773453559,-377.159111,0.00017225,2]
[372823260,1752773453569,-151.0,0.00017226,2]
[372823263,1752773453579,-151.0,0.00017226,2]
[372823264,1752773453589,-151.0,0.00017226,2]
[372823266,1752773453600,-151.0,0.00017226,2]
[372823268,1752773453610,-151.0,0.00017226,2]
[372823270,1752773453620,-688.509591,0.00017226,2]
[372823272,1752773453631,-151.0,0.00017226,2]
[372823274,1752773453641,-688.509591,0.00017226,2]
[372823276,1752773453651,-151.0,0.00017226,2]
[372823278,1752773453661,-151.0,0.00017226,2]
[372823281,1752773453671,-460.0,0.00017226,2]
[372823283,1752773453684,-315.944094,0.00017226,2]
[372823284,1752773453695,-315.944094,0.00017226,2]
[372823286,1752773453704,-162.218661,0.00017226,2]
[372823287,1752773453714,-162.218661,0.00017226,2]
[372823288,1752773453723,-500.0,0.00017226,2]
[372823289,1752773453733,-500.0,0.00017226,2]
[372823290,1752773453742,-500.0,0.00017226,2]
[372823291,1752773453752,-423.91816895,0.00017226,2]
[372823292,1752773453761,-209.072414,0.00017228,2]
[372823293,1752773453771,-209.072414,0.00017228,2]
[372823294,1752773453780,-151.0,0.00017228,2]
[372823296,1752773453790,-151.0,0.00017228,2]
[372823299,1752773453800,-608.802714,0.00017228,2]
[372823301,1752773453809,-608.802714,0.00017228,2]
[372823303,1752773453819,-151.0,0.00017228,2]
[372823305,1752773453828,-151.0,0.00017228,2]
[372823307,1752773453838,-151.0,0.00017228,2]
[372823309,1752773453847,-173.209,0.00017228,2]
[372823311,1752773453857,-173.209,0.00017228,2]
[372823313,1752773453867,-151.0,0.00017229,2]
[372823315,1752773453877,-500.0,0.00017239,2]
[372823317,1752773453887,-231.73,0.00017312,2]
[372823319,1752773453896,-160.0,0.00017482,2]
[372823321,1752773453907,-1028.0,0.00017497,2]
[372823323,1752773453917,-151.0,0.00017497,2]
[372823325,1752773453927,-151.0,0.00017497,2]
[372823327,1752773453936,-500.0,0.00017497,2]
[372823329,1752773453946,-151.0,0.00017497,2]
[372823331,1752773453956,-500.0,0.00017497,2]
[372823333,1752773453965,-460.0,0.00017497,2]
[372823335,1752773453975,-460.0,0.00017497,2]
[372823337,1752773453984,-460.0,0.00017497,2]
[372823339,1752773453994,-591.26,0.00017497,2]
[372823341,1752773454003,-460.0,0.00017497,2]
[372823343,1752773454013,-480.10009484,0.00017497,2]
[372823345,1752773454023,-460.0,0.00017497,2]
[372823347,1752773454032,-460.0,0.00017497,2]
[372823349,1752773454042,-460.0,0.00017497,2]
[372823351,1752773454051,-460.0,0.00017497,2]
[372823353,1752773454061,-460.0,0.00017497,2]
[372823355,1752773454071,-460.0,0.00017497,2]
[372823357,1752773454081,-1795.63,0.00017497,2]
[372823360,1752773454090,-460.0,0.00017497,2]
[372823362,1752773454100,-460.0,0.00017497,2]
[372823364,1752773454110,-460.0,0.00017497,2]
[372823366,1752773454120,-1160.32,0.00017497,2]
[372823368,1752773454130,-460.0,0.00017497,2]
[372823370,1752773454140,-460.0,0.00017497,2]
[372823372,1752773454149,-460.0,0.00017497,2]
[372823374,1752773454159,-460.0,0.00017497,2]
[372823376,1752773454174,-460.0,0.00017497,2]
[372823378,1752773454183,-460.0,0.00017497,2]
[372823380,1752773454194,-460.0,0.00017497,2]
[372823382,1752773454203,-1158.91,0.00017497,2]
[372823384,1752773454212,-460.0,0.00017497,2]
[372823386,1752773454223,-460.0,0.00017497,2]
[372823388,1752773454232,-460.0,0.00017497,2]
[372823390,1752773454242,-1432.68,0.00017497,2]
[372823392,1752773454252,-460.0,0.00017497,2]
[372823394,1752773454262,-460.0,0.00017497,2]
[372823397,1752773454271,-460.0,0.00017497,2]
[372823398,1752773454281,-465.52343992,0.00017497,2]
[372823401,1752773454291,-460.0,0.00017497,2]
[372823403,1752773454301,-460.0,0.00017497,2]
[372823405,1752773454310,-460.0,0.00017497,2]
[372823407,1752773454319,-460.0,0.00017497,2]
[372823409,1752773454330,-460.0,0.00017497,2]
[372823411,1752773454339,-460.0,0.00017497,2]
[372823413,1752773454349,-460.0,0.00017497,2]
[372823415,1752773454358,-460.0,0.00017497,2]
[372823417,1752773454368,-460.0,0.00017497,2]
[372823419,1752773454377,-460.0,0.00017497,2]
[372823421,1752773454388,-936.14,0.00017497,2]
[372823423,1752773454397,-460.0,0.00017497,2]
[372823425,1752773454407,-460.0,0.00017497,2]
[372823427,1752773454416,-460.0,0.00017497,2]
[372823429,1752773454425,-2671.87,0.00017497,2]
[372823431,1752773454435,-460.0,0.00017497,2]
[372823433,1752773454444,-797.47,0.00017497,2]
[372823435,1752773454454,-460.0,0.00017497,2]
[372823437,1752773454463,-151.0,0.00017497,2]
[372823439,1752773454473,-460.0,0.00017497,2]
[372823441,1752773454482,-460.0,0.00017497,2]
[372823443,1752773454491,-460.0,0.00017497,2]
[372823445,1752773454501,-460.0,0.00017497,2]
[372823447,1752773454510,-460.0,0.00017497,2]
[372823449,1752773454519,-460.0,0.00017497,2]
[372823451,1752773454528,-816.79,0.00017497,2]
[372823453,1752773454537,-460.0,0.00017497,2]
[372823455,1752773454546,-460.0,0.00017497,2]
[372823457,1752773454556,-460.0,0.00017497,2]
[372823459,1752773454566,-805.05,0.00017497,2]
[372823461,1752773454575,-460.0,0.00017497,2]
[372823463,1752773454585,-460.0,0.00017497,2]
[372823465,1752773454594,-460.0,0.00017497,2]
[372823467,1752773454603,-500.0,0.00017498,2]
[372823469,1752773454613,-1238.0,0.00017498,2]
[372823471,1752773454623,-460.0,0.00017498,2]
[372823473,1752773454632,-460.0,0.00017498,2]
[372823475,1752773454641,-460.0,0.00017498,2]
[372823477,1752773454651,-460.0,0.00017498,2]
[372823479,1752773454661,-151.0,0.00017498,2]
[372823481,1752773454671,-460.0,0.00017498,2]
[372823483,1752773454681,-460.0,0.00017498,2]
[372823485,1752773454691,-460.0,0.00017498,2]
[372823487,1752773454700,-460.0,0.00017498,2]
[372823490,1752773454711,-460.0,0.00017498,2]
[372823492,1752773454721,-460.0,0.00017498,2]
[372823494,1752773454730,-460.0,0.00017498,2]
[372823496,1752773454739,-153.047757,0.00017498,2]
[372823498,1752773454749,-460.0,0.00017498,2]
[372823500,1752773454759,-460.0,0.00017498,2]
[372823501,1752773454768,-465.24848854,0.00017498,2]
[372823504,1752773454778,-460.0,0.00017498,2]
[372823506,1752773454788,-460.0,0.00017498,2]
[372823508,1752773454797,-460.0,0.00017498,2]
[372823510,1752773454807,-464.64234441,0.00017498,2]
[372823512,1752773454816,-460.0,0.00017498,2]
[372823513,1752773454826,-460.0,0.00017498,2]
[372823516,1752773454837,-460.0,0.00017498,2]
[372823517,1752773454846,-2680.42124,0.00017498,2]
[372823520,1752773454856,-460.0,0.00017498,2]
[372823522,1752773454865,-2680.42124,0.00017498,2]
[372823524,1752773454875,-460.0,0.00017498,2]
[372823526,1752773454886,-460.0,0.00017498,2]
[372823528,1752773454896,-460.0,0.00017498,2]
[372823530,1752773454905,-460.0,0.00017498,2]
[372823532,1752773454914,-555.31653507,0.00017498,2]
[372823534,1752773454924,-460.0,0.00017498,2]
[372823536,1752773454934,-1039.19,0.00017498,2]
[372823538,1752773454944,-460.0,0.00017498,2]
[372823540,1752773454953,-1164.105186,0.00017498,2]
[372823542,1752773454962,-1164.105186,0.00017498,2]
[372823544,1752773454972,-759.87,0.00017498,2]
[372823546,1752773454981,-460.0,0.00017498,2]
[372823548,1752773454991,-460.0,0.00017498,2]
[372823550,1752773455000,-460.0,0.00017498,2]
[372823552,1752773455009,-460.0,0.00017498,2]
[372823554,1752773455019,-460.0,0.00017498,2]
[372823556,1752773455028,-642.67,0.00017498,2]
[372823558,1752773455038,-460.0,0.00017498,2]
[372823560,1752773455048,-1332.47,0.00017498,2]
[372823562,1752773455057,-460.0,0.00017498,2]
[372823564,1752773455067,-460.0,0.00017498,2]
[372823566,1752773455077,-460.0,0.00017498,2]
[372823568,1752773455087,-460.0,0.00017498,2]
[372823570,1752773455096,-460.0,0.00017498,2]
[372823572,1752773455106,-460.0,0.00017498,2]
[372823574,1752773455115,-460.0,0.00017498,2]
[372823576,1752773455125,-460.0,0.00017498,2]
[372823578,1752773455137,-460.0,0.00017498,2]
[372823580,1752773455147,-822.83,0.00017498,2]
[372823582,1752773455157,-460.0,0.00017498,2]
[372823584,1752773455169,-460.0,0.00017498,2]
[372823586,1752773455179,-460.0,0.00017498,2]
[372823588,1752773455189,-460.0,0.00017498,2]
[372823590,1752773455199,-2833.79,0.00017498,2]
[372823592,1752773455211,-460.0,0.00017498,2]
[372823594,1752773455221,-609.19052968,0.00017498,2]
[372823597,1752773455231,-268.424204,0.00017498,2]
[372823598,1752773455240,-268.424204,0.00017498,2]
[372823601,1752773455250,-460.0,0.00017498,2]
[372823603,1752773455260,-460.0,0.00017498,2]
[372823605,1752773455269,-464.50643955,0.00017498,2]
[372823607,1752773455279,-1025.85,0.00017498,2]
[372823609,1752773455288,-460.0,0.00017498,2]
[372823611,1752773455297,-460.0,0.00017498,2]
[372823613,1752773455307,-460.0,0.00017499,2]
[372823615,1752773455316,-460.0,0.00017499,2]
[372823617,1752773455326,-463.74305608,0.00017499,2]
[372823618,1752773455336,-460.0,0.00017499,2]
[372823621,1752773455345,-468.23606961,0.00017499,2]
[372823623,1752773455354,-460.0,0.00017499,2]
[372823624,1752773455364,-460.0,0.00017499,2]
[372823626,1752773455373,-170.645196,0.00017499,2]
[372823628,1752773455384,-170.645196,0.00017499,2]
[372823630,1752773455393,-460.0,0.00017499,2]
[372823645,1752773455521,-460.0,0.00017499,2]
[372823647,1752773455531,-460.0,0.00017499,2]
[372823649,1752773455540,-460.0,0.00017499,2]
[372823651,1752773455550,-508.05684862,0.00017499,2]
[372823653,1752773455559,-460.0,0.00017499,2]
[372823655,1752773455568,-460.0,0.00017499,2]
[372823657,1752773455578,-462.34961306,0.00017499,2]
[372823659,1752773455587,-460.0,0.00017499,2]
[372823661,1752773455597,-460.0,0.00017499,2]
[372823663,1752773455606,-460.0,0.00017499,2]
[372823665,1752773455615,-460.0,0.00017499,2]
[372823667,1752773455625,-460.0,0.00017499,2]
[372823669,1752773455638,-460.0,0.00017499,2]
[372823671,1752773455648,-460.0,0.00017499,2]
[372823674,1752773455658,-460.0,0.00017499,2]
[372823676,1752773455667,-430.92298124,0.00017499,2]
[372823678,1752773455677,-151.0,0.00017499,2]
[372823679,1752773455686,-582.41255191,0.00017499,2]
[372823682,1752773455696,-151.0,0.00017499,2]
[372823683,1752773455706,-408.630794,0.00017499,2]
[372823685,1752773455717,-408.630794,0.00017499,2]
[372823688,1752773455726,-460.0,0.00017499,2]
[372823690,1752773455735,-460.0,0.00017499,2]
[372823692,1752773455745,-151.0,0.00017499,2]
[372823694,1752773455754,-163.772039,0.00017499,2]
[372823695,1752773455763,-163.772039,0.00017499,2]
[372823698,1752773455773,-460.0,0.00017499,2]
[372823700,1752773455782,-226.993,0.00017499,2]
[372823702,1752773455792,-460.0,0.00017499,2]
[372823704,1752773455801,-460.0,0.00017499,2]
[372823706,1752773455810,-460.0,0.00017499,2]
[372823708,1752773455820,-460.0,0.00017499,2]
[372823710,1752773455829,-151.0,0.00017499,2]
[372823712,1752773455838,-460.0,0.00017499,2]
[372823714,1752773455847,-223.287329,0.00017499,2]
[372823716,1752773455857,-223.287329,0.00017499,2]
[372823718,1752773455866,-604.73174681,0.00017499,2]
[372823719,1752773455875,-377.159111,0.00017499,2]
[372823721,1752773455888,-397.95170197,0.00017521,2]
[372823724,1752773455898,-7301.37818384,0.00017521,2]
[372823726,1752773455907,-700.0,0.0001753,2]
[372823728,1752773455916,-151.0,0.00017588,2]
[372823729,1752773455925,-688.509591,0.00017588,2]
[372823732,1752773455935,-151.0,0.00017588,2]
[372823734,1752773455945,-688.509591,0.00017588,2]
[372823736,1752773455954,-334.526732,0.00017588,2]
[372823738,1752773455963,-334.526732,0.00017588,2]
[372823740,1752773455972,-151.0,0.00017588,2]
[372823742,1752773455982,-334.063091,0.00017588,2]
[372823744,1752773455991,-334.063091,0.00017588,2]
[372823746,1752773456000,-209.072414,0.00017588,2]
[372823748,1752773456010,-315.944094,0.00017588,2]
[372823749,1752773456019,-209.072414,0.00017588,2]
[372823751,1752773456029,-315.944094,0.00017588,2]
[372823753,1752773456038,-151.0,0.00017588,2]
[372823755,1752773456047,-151.0,0.00017588,2]
[372823757,1752773456057,-151.0,0.00017588,2]
[372823759,1752773456067,-608.802714,0.00017588,2]
[372823761,1752773456077,-608.802714,0.00017588,2]
[372823763,1752773456097,-151.0,0.00017588,2]
[372823765,1752773456107,-162.218661,0.00017588,2]
[372823767,1752773456117,-162.218661,0.00017588,2]
[372823769,1752773456126,-720.612448,0.00017588,2]
[372823771,1752773456140,-720.612448,0.00017588,2]
[372823773,1752773456150,-408.630794,0.00017588,2]
[372823775,1752773456160,-408.630794,0.00017588,2]
[372823777,1752773456170,-173.209,0.00017588,2]
[372823779,1752773456180,-173.209,0.00017588,2]
[372823781,1752773456189,-268.424204,0.00017588,2]
[372823783,1752773456199,-268.424204,0.00017588,2]
[372823785,1752773456209,-286.975917,0.00017588,2]
[372823788,1752773456222,-286.975917,0.00017588,2]
[372823790,1752773456232,-377.159111,0.00017588,2]
[372823792,1752773456241,-151.52356667,0.00017588,2]
[372823794,1752773456252,-25000.0,0.00017588,2]
[372823796,1752773456263,-151.0,0.000177,2]
[372823798,1752773456273,-1500.0,0.00017768,2]
[372823800,1752773456283,-1500.0,0.00017768,2]
[372823802,1752773456292,-500.0,0.00017768,2]
[372823804,1752773456301,-1025.15971395,0.00017768,2]
[372823806,1752773456311,-1028.0,0.00017771,2]
[372823808,1752773456321,-245.0,0.00017771,2]
[372823810,1752773456339,-500.0,0.00017771,2]
[372823812,1752773456360,-245.0,0.00017771,2]
[372823814,1752773456371,-500.0,0.00017771,2]
[372823816,1752773456382,-460.0,0.00017771,2]
[372823818,1752773456393,-460.0,0.00017771,2]
[372823820,1752773456403,-460.0,0.00017771,2]
[372823822,1752773456412,-591.26,0.00017771,2]
[372823824,1752773456423,-460.0,0.00017771,2]
[372823826,1752773456432,-460.0,0.00017771,2]
[372823828,1752773456442,-460.0,0.00017771,2]
[372823830,1752773456451,-280.93178791,0.00017771,2]
[372823832,1752773456462,-1795.63,0.00017771,2]
[372823834,1752773456472,-460.0,0.00017771,2]
[372823837,1752773456484,-460.0,0.00017771,2]
[372823839,1752773456494,-1160.32,0.00017771,2]
[372823841,1752773456503,-460.0,0.00017771,2]
[372823843,1752773456512,-460.0,0.00017771,2]
[372823845,1752773456522,-460.0,0.00017771,2]
[372823847,1752773456531,-460.0,0.00017771,2]
[372823849,1752773456541,-460.0,0.00017771,2]
[372823851,1752773456551,-460.0,0.00017771,2]
[372823853,1752773456561,-1158.91,0.00017771,2]
[372823855,1752773456570,-460.0,0.00017771,2]
[372823857,1752773456579,-460.0,0.00017771,2]
[372823859,1752773456589,-1432.68,0.00017771,2]
[372823861,1752773456599,-460.0,0.00017771,2]
[372823863,1752773456609,-460.0,0.00017771,2]
[372823865,1752773456618,-460.0,0.00017771,2]
[372823867,1752773456628,-460.0,0.00017771,2]
[372823869,1752773456640,-460.0,0.00017771,2]
[372823871,1752773456650,-460.0,0.00017771,2]
[372823873,1752773456659,-460.0,0.00017771,2]
[372823875,1752773456669,-460.0,0.00017771,2]
[372823877,1752773456678,-460.0,0.00017771,2]
[372823879,1752773456688,-460.0,0.00017771,2]
[372823881,1752773456697,-460.0,0.00017771,2]
[372823883,1752773456706,-936.14,0.00017771,2]
[372823885,1752773456716,-460.0,0.00017771,2]
[372823887,1752773456725,-460.0,0.00017771,2]
[372823889,1752773456734,-460.0,0.00017771,2]
[372823891,1752773456743,-2671.87,0.00017771,2]
[372823893,1752773456753,-797.47,0.00017771,2]
[372823895,1752773456762,-460.0,0.00017771,2]
[372823897,1752773456772,-460.0,0.00017771,2]
[372823899,1752773456781,-460.0,0.00017771,2]
[372823902,1752773456791,-460.0,0.00017771,2]
[372823904,1752773456800,-460.0,0.00017771,2]
[372823906,1752773456809,-460.0,0.00017771,2]
[372823908,1752773456819,-816.79,0.00017771,2]
[372823910,1752773456829,-460.0,0.00017771,2]
[372823912,1752773456838,-460.0,0.00017771,2]
[372823914,1752773456848,-805.05,0.00017771,2]
[372823916,1752773456857,-460.0,0.00017771,2]
[372823918,1752773456866,-460.0,0.00017771,2]
[372823920,1752773456876,-460.0,0.00017771,2]
[372823922,1752773456887,-453.0,0.00017772,2]
[372823924,1752773456896,-1238.0,0.00017772,2]
[372823926,1752773456906,-460.0,0.00017772,2]
[372823928,1752773456915,-317.75233059,0.00017772,2]
[372823930,1752773456925,-460.0,0.00017772,2]
[372823932,1752773456934,-151.0,0.00017772,2]
[372823934,1752773456944,-460.0,0.00017772,2]
[372823936,1752773456953,-436.34,0.00017772,2]
[372823938,1752773456962,-460.0,0.00017772,2]
[372823940,1752773456972,-468.97876296,0.00017772,2]
[372823942,1752773456981,-460.0,0.00017772,2]
[372823944,1752773456991,-520.97715242,0.00017772,2]
[372823946,1752773457000,-464.59368521,0.00017772,2]
[372823948,1752773457009,-460.0,0.00017772,2]
[372823950,1752773457019,-460.0,0.00017772,2]
[372823952,1752773457028,-460.0,0.00017772,2]
[372823954,1752773457039,-460.0,0.00017772,2]
[372823956,1752773457048,-460.0,0.00017772,2]
[372823959,1752773457058,-460.0,0.00017772,2]
[372823960,1752773457067,-460.0,0.00017772,2]
[372823963,1752773457076,-151.0,0.00017772,2]
[372823965,1752773457085,-2680.42124,0.00017772,2]
[372823967,1752773457094,-2680.42124,0.00017772,2]
[372823969,1752773457105,-460.0,0.00017772,2]
[372823971,1752773457114,-157.568234,0.00017772,2]
[372823972,1752773457124,-460.0,0.00017772,2]
[372823975,1752773457133,-460.0,0.00017772,2]
[372823977,1752773457145,-460.0,0.00017772,2]
[372823979,1752773457155,-1039.19,0.00017772,2]
[372823981,1752773457164,-1164.105186,0.00017772,2]
[372823983,1752773457176,-1164.105186,0.00017772,2]
[372823985,1752773457185,-759.87,0.00017772,2]
[372823987,1752773457194,-209.01030772,0.00017772,2]
[372823989,1752773457204,-460.0,0.00017772,2]
[372823991,1752773457214,-460.0,0.00017772,2]
[372823993,1752773457223,-460.0,0.00017772,2]
[372823995,1752773457232,-642.67,0.00017772,2]
[372823997,1752773457242,-460.0,0.00017772,2]
[372823999,1752773457252,-151.0,0.00017772,2]
[372824001,1752773457262,-163.772039,0.00017772,2]
[372824003,1752773457272,-163.772039,0.00017772,2]
[372824005,1752773457281,-1332.47,0.00017772,2]
[372824007,1752773457290,-460.0,0.00017772,2]
[372824009,1752773457299,-460.0,0.00017772,2]
[372824011,1752773457309,-464.73715589,0.00017772,2]
[372824013,1752773457319,-460.0,0.00017772,2]
[372824015,1752773457329,-460.0,0.00017772,2]
[372824017,1752773457339,-460.0,0.00017772,2]
[372824019,1752773457348,-460.0,0.00017772,2]
[372824021,1752773457357,-460.0,0.00017772,2]